[Event "*** Titled Tuesday Blitz"]
[Site "Chess.com"]
[Date "2021.03.09"]
[Round "11"]
[White "J36225"]
[Black "Legendinunknown"]
[Result "1-0"]
[WhiteElo "2507"]
[BlackElo "2609"]
[TimeControl "180+1"]
[EndTime "12:10:15 PST"]
[Termination "J36225 won by checkmate"]

1. e4 {[%clk 0:03:00.9]} 1... e5 {[%clk 0:02:59.3]} 2. Nf3 {[%clk 0:03:00.6]}
2... Nc6 {[%clk 0:02:59.7]} 3. Bb5 {[%clk 0:02:59]} 3... a6 {[%clk 0:02:59.8]}
4. Ba4 {[%clk 0:02:58.9]} 4... d6 {[%clk 0:03:00]} 5. O-O {[%clk 0:02:57.7]}
5... Bg4 {[%clk 0:02:58.6]} 6. h3 {[%clk 0:02:56.1]} 6... h5 {[%clk 0:02:59]} 7.
c3 {[%clk 0:02:48.7]} 7... Qf6 {[%clk 0:02:48.3]} 8. Bxc6+ {[%clk 0:02:42.3]}
8... bxc6 {[%clk 0:02:47.2]} 9. d3 {[%clk 0:02:42.4]} 9... Ne7 {[%clk
0:02:39.7]} 10. Nbd2 {[%clk 0:02:40.5]} 10... Ng6 {[%clk 0:02:36.8]} 11. Nc4
{[%clk 0:02:37.9]} 11... Bxf3 {[%clk 0:02:34.8]} 12. Qxf3 {[%clk 0:02:37.4]}
12... Qxf3 {[%clk 0:02:34.4]} 13. gxf3 {[%clk 0:02:37.6]} 13... Be7 {[%clk
0:02:34.9]} 14. d4 {[%clk 0:02:28.2]} 14... Nh4 {[%clk 0:02:29.5]} 15. f4 {[%clk
0:02:27.4]} 15... exd4 {[%clk 0:02:28.6]} 16. cxd4 {[%clk 0:02:25.6]} 16... Nf3+
{[%clk 0:02:27.9]} 17. Kg2 {[%clk 0:02:25.6]} 17... Nxd4 {[%clk 0:02:28.8]} 18.
Be3 {[%clk 0:02:24.2]} 18... Nc2 {[%clk 0:02:26.8]} 19. Rac1 {[%clk 0:02:24.3]}
19... Nxe3+ {[%clk 0:02:27.3]} 20. fxe3 {[%clk 0:02:25.2]} 20... Kd7 {[%clk
0:02:27.2]} 21. Rfd1 {[%clk 0:02:19.7]} 21... Rab8 {[%clk 0:02:23.1]} 22. b3
{[%clk 0:02:19]} 22... g6 {[%clk 0:02:20.3]} 23. e5 {[%clk 0:02:18.7]} 23... d5
{[%clk 0:01:58.5]} 24. e4 {[%clk 0:02:17.2]} 24... Rb5 {[%clk 0:01:52.8]} 25.
Ne3 {[%clk 0:02:14]} 25... Ba3 {[%clk 0:01:50]} 26. Rc2 {[%clk 0:02:06.7]} 26...
Bc5 {[%clk 0:01:46.7]} 27. Nxd5 {[%clk 0:02:01.1]} 27... cxd5 {[%clk 0:01:42.6]}
28. Rxd5+ {[%clk 0:02:00.6]} 28... Kc6 {[%clk 0:01:43.2]} 29. b4 {[%clk
0:02:00.6]} 29... Rxb4 {[%clk 0:01:43.7]} 30. Rdxc5+ {[%clk 0:02:00.2]} 30...
Kb6 {[%clk 0:01:44.1]} 31. Rc6+ {[%clk 0:01:59.5]} 31... Kb5 {[%clk 0:01:40.2]}
32. Rxc7 {[%clk 0:01:59.5]} 32... Rxe4 {[%clk 0:01:38.9]} 33. Rb2+ {[%clk
0:01:59.1]} 33... Ka4 {[%clk 0:01:35]} 34. Rxf7 {[%clk 0:01:58.1]} 34... g5
{[%clk 0:01:34.3]} 35. fxg5 {[%clk 0:01:55.9]} 35... Rxe5 {[%clk 0:01:29.6]} 36.
Rf4+ {[%clk 0:01:50.8]} 36... Ka5 {[%clk 0:01:28.8]} 37. h4 {[%clk 0:01:49.8]}
37... Rd8 {[%clk 0:01:28.4]} 38. Rbf2 {[%clk 0:01:48.8]} 38... Rdd5 {[%clk
0:01:18.3]} 39. Kh3 {[%clk 0:01:36.7]} 39... Rd3+ {[%clk 0:01:12]} 40. R2f3
{[%clk 0:01:36.3]} 40... Rd6 {[%clk 0:01:01]} 41. Rf5 {[%clk 0:01:35.2]} 41...
Rxf5 {[%clk 0:01:01]} 42. Rxf5+ {[%clk 0:01:34.9]} 42... Kb4 {[%clk 0:01:01.3]}
43. Rf2 {[%clk 0:01:25]} 43... Rd3+ {[%clk 0:00:44.8]} 44. Kg2 {[%clk
0:01:24.4]} 44... Rd4 {[%clk 0:00:44.6]} 45. Kg3 {[%clk 0:01:23.4]} 45... Ka3
{[%clk 0:00:36.8]} 46. Rg2 {[%clk 0:01:17.8]} 46... Rd3+ {[%clk 0:00:25.6]} 47.
Kh2 {[%clk 0:01:07.2]} 47... Rd4 {[%clk 0:00:23.4]} 48. Kh3 {[%clk 0:01:06.3]}
48... Rd7 {[%clk 0:00:18.1]} 49. g6 {[%clk 0:01:04.9]} 49... Rg7 {[%clk
0:00:18.5]} 50. Kh2 {[%clk 0:01:02.8]} 50... a5 {[%clk 0:00:18.5]} 51. Kg1
{[%clk 0:01:02.4]} 51... a4 {[%clk 0:00:19]} 52. Kf1 {[%clk 0:01:01.7]} 52...
Kb4 {[%clk 0:00:17.7]} 53. Kf2 {[%clk 0:01:01.6]} 53... Kc3 {[%clk 0:00:18.4]}
54. Kf3 {[%clk 0:01:01.5]} 54... Kd4 {[%clk 0:00:18.8]} 55. Kf4 {[%clk
0:01:01.5]} 55... a3 {[%clk 0:00:18.7]} 56. Kf5 {[%clk 0:01:01.3]} 56... Ke3
{[%clk 0:00:19.3]} 57. Kf6 {[%clk 0:01:00.5]} 57... Rg8 {[%clk 0:00:19.6]} 58.
g7 {[%clk 0:01:00.7]} 58... Kf3 {[%clk 0:00:19.9]} 59. Rg5 {[%clk 0:00:59.8]}
59... Kf4 {[%clk 0:00:19.1]} 60. Rxh5 {[%clk 0:00:59.5]} 60... Ra8 {[%clk
0:00:20]} 61. Rh8 {[%clk 0:00:59.1]} 61... Ra7 {[%clk 0:00:20.9]} 62. g8=Q
{[%clk 0:00:57.4]} 62... Ra6+ {[%clk 0:00:21.8]} 63. Ke7 {[%clk 0:00:57.4]}
63... Ra7+ {[%clk 0:00:22.3]} 64. Kd6 {[%clk 0:00:57.6]} 64... Ra6+ {[%clk
0:00:22.8]} 65. Kc5 {[%clk 0:00:57.8]} 65... Ra8 {[%clk 0:00:23.3]} 66. Qg5+
{[%clk 0:00:56.3]} 66... Kf3 {[%clk 0:00:23.4]} 67. Rxa8 {[%clk 0:00:56.1]}
67... Ke2 {[%clk 0:00:23]} 68. Re8+ {[%clk 0:00:55.8]} 68... Kd1 {[%clk
0:00:23.9]} 69. Qd5+ {[%clk 0:00:55.5]} 69... Kc2 {[%clk 0:00:24.8]} 70. Re2+
{[%clk 0:00:55.1]} 70... Kb1 {[%clk 0:00:25.7]} 71. Qb3+ {[%clk 0:00:54.9]}
71... Ka1 {[%clk 0:00:24.9]} 72. Qd1# {[%clk 0:00:54.8]} 1-0

[Event "*** Titled Tuesday Blitz"]
[Site "Chess.com"]
[Date "2021.03.09"]
[Round "11"]
[White "ErikRonka"]
[Black "Meri-Arabidze"]
[Result "1-0"]
[WhiteElo "2427"]
[BlackElo "2557"]
[TimeControl "180+1"]
[EndTime "12:10:15 PST"]
[Termination "ErikRonka won by checkmate"]

1. d4 {[%clk 0:03:00.9]} 1... d5 {[%clk 0:02:59.6]} 2. c4 {[%clk 0:03:01]} 2...
e6 {[%clk 0:02:59.5]} 3. Nc3 {[%clk 0:03:01.3]} 3... Nf6 {[%clk 0:02:59.7]} 4.
cxd5 {[%clk 0:03:01.5]} 4... exd5 {[%clk 0:02:59.5]} 5. Bg5 {[%clk 0:03:01.8]}
5... Be7 {[%clk 0:02:59.5]} 6. e3 {[%clk 0:03:01.3]} 6... c6 {[%clk 0:02:59.5]}
7. Bd3 {[%clk 0:03:00.9]} 7... Nbd7 {[%clk 0:02:59.7]} 8. Nf3 {[%clk 0:02:55.4]}
8... Nf8 {[%clk 0:02:59.5]} 9. h3 {[%clk 0:02:49.2]} 9... Ne6 {[%clk 0:02:59.6]}
10. Bh4 {[%clk 0:02:49.5]} 10... O-O {[%clk 0:02:59.5]} 11. O-O {[%clk 0:02:49]}
11... g6 {[%clk 0:02:58.2]} 12. Rb1 {[%clk 0:02:49.4]} 12... Ng7 {[%clk
0:02:56.8]} 13. b4 {[%clk 0:02:46.8]} 13... a6 {[%clk 0:02:56.8]} 14. a4 {[%clk
0:02:46.7]} 14... Nf5 {[%clk 0:02:57]} 15. Bxf6 {[%clk 0:02:45.6]} 15... Bxf6
{[%clk 0:02:57.9]} 16. b5 {[%clk 0:02:45.4]} 16... axb5 {[%clk 0:02:58.6]} 17.
axb5 {[%clk 0:02:45.9]} 17... Nd6 {[%clk 0:02:57.4]} 18. bxc6 {[%clk 0:02:42.5]}
18... bxc6 {[%clk 0:02:58.3]} 19. Na4 {[%clk 0:02:33.3]} 19... Ba6 {[%clk
0:02:40.6]} 20. Bxa6 {[%clk 0:02:25.1]} 20... Rxa6 {[%clk 0:02:41.5]} 21. Nc5
{[%clk 0:02:25.8]} 21... Ra7 {[%clk 0:02:34.8]} 22. Nd2 {[%clk 0:02:24.5]} 22...
Re8 {[%clk 0:02:26.2]} 23. Qb3 {[%clk 0:02:20.4]} 23... Nb5 {[%clk 0:02:22.7]}
24. Ra1 {[%clk 0:02:10.8]} 24... Rxa1 {[%clk 0:02:05]} 25. Rxa1 {[%clk
0:02:11.7]} 25... Qe7 {[%clk 0:01:32.4]} 26. Nd3 {[%clk 0:01:57.4]} 26... h5
{[%clk 0:01:24.8]} 27. Rc1 {[%clk 0:01:56.4]} 27... Qd6 {[%clk 0:01:14.7]} 28.
Nf3 {[%clk 0:01:50.3]} 28... Rb8 {[%clk 0:01:02.6]} 29. Qc2 {[%clk 0:01:48.7]}
29... Rb6 {[%clk 0:01:00.8]} 30. Nfe5 {[%clk 0:01:29]} 30... Bxe5 {[%clk
0:01:00]} 31. Nxe5 {[%clk 0:01:29.9]} 31... Na7 {[%clk 0:00:33.4]} 32. Rb1
{[%clk 0:01:25.3]} 32... Rxb1+ {[%clk 0:00:31.7]} 33. Qxb1 {[%clk 0:01:26.2]}
33... Nb5 {[%clk 0:00:32.3]} 34. Qc2 {[%clk 0:01:20.5]} 34... Na7 {[%clk
0:00:30.7]} 35. Qa4 {[%clk 0:01:19.4]} 35... Qc7 {[%clk 0:00:30.6]} 36. Qb4
{[%clk 0:01:07.8]} 36... Kg7 {[%clk 0:00:25.3]} 37. Qc5 {[%clk 0:01:05.8]} 37...
f6 {[%clk 0:00:25.6]} 38. Nd3 {[%clk 0:01:05]} 38... g5 {[%clk 0:00:23]} 39. Nb4
{[%clk 0:01:04.6]} 39... Qd7 {[%clk 0:00:23.2]} 40. Qb6 {[%clk 0:01:01.4]} 40...
g4 {[%clk 0:00:18.1]} 41. h4 {[%clk 0:00:56.8]} 41... Kg6 {[%clk 0:00:17.9]} 42.
Na6 {[%clk 0:00:56.3]} 42... Nc8 {[%clk 0:00:16.8]} 43. Qb8 {[%clk 0:00:53.9]}
43... Ne7 {[%clk 0:00:16]} 44. Nc5 {[%clk 0:00:52.4]} 44... Qf5 {[%clk
0:00:15.4]} 45. Qe8+ {[%clk 0:00:50.5]} 45... Kh6 {[%clk 0:00:14.6]} 46. Nd7
{[%clk 0:00:49.8]} 46... Ng6 {[%clk 0:00:09.3]} 47. Qf7 {[%clk 0:00:46.1]} 47...
g3 {[%clk 0:00:09.1]} 48. fxg3 {[%clk 0:00:44.4]} 48... Qe4 {[%clk 0:00:09.1]}
49. Nxf6 {[%clk 0:00:33.5]} 49... Qxe3+ {[%clk 0:00:06.6]} 50. Kh2 {[%clk
0:00:33.6]} 50... Qxd4 {[%clk 0:00:04.4]} 51. Ng8# {[%clk 0:00:32.7]} 1-0

[Event "*** Titled Tuesday Blitz"]
[Site "Chess.com"]
[Date "2021.03.09"]
[Round "11"]
[White "suyu28"]
[Black "Nemsko"]
[Result "0-1"]
[WhiteElo "2568"]
[BlackElo "2309"]
[TimeControl "180+1"]
[EndTime "12:10:18 PST"]
[Termination "Nemsko won on time"]

1. d4 {[%clk 0:03:00.9]} 1... Nf6 {[%clk 0:02:59.7]} 2. Bf4 {[%clk 0:02:56.1]}
2... d5 {[%clk 0:02:58.6]} 3. e3 {[%clk 0:02:55.9]} 3... e6 {[%clk 0:02:57.4]}
4. Nf3 {[%clk 0:02:56.3]} 4... Bd6 {[%clk 0:02:58]} 5. Bg3 {[%clk 0:02:54.9]}
5... O-O {[%clk 0:02:58]} 6. Bd3 {[%clk 0:02:50]} 6... c5 {[%clk 0:02:54]} 7. c3
{[%clk 0:02:47.3]} 7... Nc6 {[%clk 0:02:54.1]} 8. Nbd2 {[%clk 0:02:44.9]} 8...
b6 {[%clk 0:02:45.6]} 9. Ne5 {[%clk 0:02:26.7]} 9... Bb7 {[%clk 0:02:44.8]} 10.
O-O {[%clk 0:02:08.5]} 10... Ne7 {[%clk 0:02:38.2]} 11. f4 {[%clk 0:01:54.4]}
11... Ne4 {[%clk 0:02:33]} 12. Bh4 {[%clk 0:01:42.2]} 12... Qc7 {[%clk
0:02:28.3]} 13. Qe2 {[%clk 0:01:40.2]} 13... Nf5 {[%clk 0:02:16.3]} 14. Be1
{[%clk 0:01:36.3]} 14... f6 {[%clk 0:02:09]} 15. Nef3 {[%clk 0:01:35.3]} 15...
Rae8 {[%clk 0:01:56.3]} 16. g4 {[%clk 0:01:30.1]} 16... Nh6 {[%clk 0:01:52.6]}
17. Qg2 {[%clk 0:01:24.3]} 17... Nf7 {[%clk 0:01:38.1]} 18. g5 {[%clk
0:01:18.1]} 18... fxg5 {[%clk 0:01:33.1]} 19. fxg5 {[%clk 0:01:12.8]} 19... Nd8
{[%clk 0:01:20.9]} 20. g6 {[%clk 0:01:06.6]} 20... h6 {[%clk 0:01:18.3]} 21. Bh4
{[%clk 0:00:52.1]} 21... Be7 {[%clk 0:00:36.9]} 22. Bxe7 {[%clk 0:00:44.2]}
22... Qxe7 {[%clk 0:00:37.8]} 23. Bxe4 {[%clk 0:00:36.8]} 23... dxe4 {[%clk
0:00:37.5]} 24. Ne5 {[%clk 0:00:34.6]} 24... Rf6 {[%clk 0:00:25]} 25. Rf2 {[%clk
0:00:17.3]} 25... Ref8 {[%clk 0:00:24.1]} 26. Raf1 {[%clk 0:00:17.3]} 26... Rxf2
{[%clk 0:00:24]} 27. Rxf2 {[%clk 0:00:17.4]} 27... Rxf2 {[%clk 0:00:23.8]} 28.
Qxf2 {[%clk 0:00:18.3]} 28... Qf6 {[%clk 0:00:23.1]} 29. Qg2 {[%clk 0:00:08.9]}
29... cxd4 {[%clk 0:00:21]} 30. cxd4 {[%clk 0:00:07.8]} 30... Qf5 {[%clk
0:00:18.7]} 31. Nf1 {[%clk 0:00:06.6]} 31... Nc6 {[%clk 0:00:16.7]} 32. Nxc6
{[%clk 0:00:03.6]} 32... Bxc6 {[%clk 0:00:16.8]} 33. Qg3 {[%clk 0:00:04.2]}
33... Qg5 {[%clk 0:00:11.6]} 34. Qxg5 {[%clk 0:00:03]} 34... hxg5 {[%clk
0:00:12.5]} 35. Ng3 {[%clk 0:00:02.9]} 35... Kf8 {[%clk 0:00:12.8]} 36. Kf2
{[%clk 0:00:02.6]} 36... Ke7 {[%clk 0:00:13.4]} 37. Nh5 {[%clk 0:00:03.1]} 37...
Kf8 {[%clk 0:00:13.2]} 38. Kg3 {[%clk 0:00:02.9]} 38... Bd5 {[%clk 0:00:12.7]}
39. Kg4 {[%clk 0:00:03.1]} 39... Bxa2 {[%clk 0:00:12.6]} 40. Kxg5 {[%clk
0:00:02.9]} 40... Bd5 {[%clk 0:00:12]} 41. Kg4 {[%clk 0:00:03.3]} 41... b5
{[%clk 0:00:12.2]} 42. Kf4 {[%clk 0:00:03.5]} 42... b4 {[%clk 0:00:10.8]} 43.
Ke5 {[%clk 0:00:03.6]} 43... a5 {[%clk 0:00:10.1]} 44. Kd6 {[%clk 0:00:03.7]}
44... a4 {[%clk 0:00:10.2]} 45. Ng3 {[%clk 0:00:02]} 45... a3 {[%clk 0:00:10.5]}
0-1

[Event "*** Titled Tuesday Blitz"]
[Site "Chess.com"]
[Date "2021.03.09"]
[Round "11"]
[White "Grimlock_Glasgow"]
[Black "andrzej"]
[Result "1-0"]
[WhiteElo "2499"]
[BlackElo "2365"]
[TimeControl "180+1"]
[EndTime "12:10:20 PST"]
[Termination "Grimlock_Glasgow won by checkmate"]

1. e4 {[%clk 0:03:00.9]} 1... c5 {[%clk 0:02:59.6]} 2. Nc3 {[%clk 0:03:00.9]}
2... Nc6 {[%clk 0:02:57.7]} 3. Bb5 {[%clk 0:03:00.6]} 3... Nd4 {[%clk
0:02:55.7]} 4. Nf3 {[%clk 0:02:59.3]} 4... Nxb5 {[%clk 0:02:53.3]} 5. Nxb5
{[%clk 0:03:00.2]} 5... d6 {[%clk 0:02:53]} 6. d4 {[%clk 0:02:59]} 6... a6
{[%clk 0:02:53.7]} 7. Nc3 {[%clk 0:02:58.4]} 7... cxd4 {[%clk 0:02:54.2]} 8.
Qxd4 {[%clk 0:02:58.4]} 8... e5 {[%clk 0:02:54.1]} 9. Qb4 {[%clk 0:02:57.5]}
9... h6 {[%clk 0:02:48]} 10. Nd5 {[%clk 0:02:29.7]} 10... Nf6 {[%clk 0:02:35.6]}
11. Nb6 {[%clk 0:02:14.4]} 11... Rb8 {[%clk 0:02:32.9]} 12. O-O {[%clk
0:01:52.5]} 12... Be6 {[%clk 0:02:30.9]} 13. Rd1 {[%clk 0:01:48.5]} 13... Qc7
{[%clk 0:02:30.4]} 14. c4 {[%clk 0:01:33.6]} 14... d5 {[%clk 0:02:20.8]} 15.
Qa4+ {[%clk 0:01:32.5]} 15... Nd7 {[%clk 0:02:06.6]} 16. Nxd5 {[%clk 0:01:26.6]}
16... Bxd5 {[%clk 0:02:02.7]} 17. cxd5 {[%clk 0:01:19.4]} 17... Bd6 {[%clk
0:01:55.8]} 18. Be3 {[%clk 0:01:18.3]} 18... O-O {[%clk 0:01:51.2]} 19. Rac1
{[%clk 0:01:18]} 19... Qd8 {[%clk 0:01:49.2]} 20. Nd2 {[%clk 0:01:07.5]} 20...
Nf6 {[%clk 0:01:38.7]} 21. Bc5 {[%clk 0:00:45.2]} 21... Nh5 {[%clk 0:01:11.9]}
22. g3 {[%clk 0:00:40.8]} 22... f5 {[%clk 0:01:06.1]} 23. exf5 {[%clk 0:00:38]}
23... Bxc5 {[%clk 0:01:00.8]} 24. Rxc5 {[%clk 0:00:36.9]} 24... Qg5 {[%clk
0:00:57.5]} 25. Ne4 {[%clk 0:00:26.7]} 25... Qxf5 {[%clk 0:00:51.6]} 26. d6
{[%clk 0:00:26.9]} 26... b5 {[%clk 0:00:48.2]} 27. Qb3+ {[%clk 0:00:25.6]} 27...
Kh8 {[%clk 0:00:48.7]} 28. Qe3 {[%clk 0:00:23]} 28... Qg4 {[%clk 0:00:33.5]} 29.
Rd3 {[%clk 0:00:19.3]} 29... Nf4 {[%clk 0:00:33.6]} 30. Rxe5 {[%clk 0:00:18]}
30... Nxd3 {[%clk 0:00:29.3]} 31. Qxd3 {[%clk 0:00:18.9]} 31... Rbd8 {[%clk
0:00:25.1]} 32. Re7 {[%clk 0:00:17.9]} 32... Rf3 {[%clk 0:00:21.8]} 33. Qd4
{[%clk 0:00:17.2]} 33... Rf6 {[%clk 0:00:15.2]} 34. Rxg7 {[%clk 0:00:14.3]}
34... Qxg7 {[%clk 0:00:09.5]} 35. Nxf6 {[%clk 0:00:14.2]} 35... Rf8 {[%clk
0:00:08.3]} 36. d7 {[%clk 0:00:14.6]} 36... Rd8 {[%clk 0:00:05.2]} 37. Qe5
{[%clk 0:00:14.5]} 37... a5 {[%clk 0:00:04.7]} 38. Qe8+ {[%clk 0:00:13.3]} 38...
Qf8 {[%clk 0:00:03.1]} 39. Qxf8+ {[%clk 0:00:13]} 39... Rxf8 {[%clk 0:00:04]}
40. Ne8 {[%clk 0:00:13.5]} 40... Rxf2 {[%clk 0:00:02.3]} 41. Kxf2 {[%clk
0:00:12.7]} 41... h5 {[%clk 0:00:01.7]} 42. d8=Q {[%clk 0:00:13.6]} 42... h4
{[%clk 0:00:02.1]} 43. Qf6+ {[%clk 0:00:13.6]} 43... Kg8 {[%clk 0:00:02.2]} 44.
Qg7# {[%clk 0:00:14.5]} 1-0

[Event "*** Titled Tuesday Blitz"]
[Site "Chess.com"]
[Date "2021.03.09"]
[Round "11"]
[White "Durarbayli"]
[Black "Bigfish1995"]
[Result "1-0"]
[WhiteElo "2702"]
[BlackElo "3049"]
[TimeControl "180+1"]
[EndTime "12:10:23 PST"]
[Termination "Durarbayli won by checkmate"]

1. e4 {[%clk 0:03:00.9]} 1... Nc6 {[%clk 0:02:58.7]} 2. Nf3 {[%clk 0:03:00.4]}
2... e6 {[%clk 0:02:57.5]} 3. d4 {[%clk 0:02:59.1]} 3... d5 {[%clk 0:02:56.8]}
4. e5 {[%clk 0:02:59.6]} 4... f6 {[%clk 0:02:56.6]} 5. Bb5 {[%clk 0:02:56.7]}
5... Bd7 {[%clk 0:02:56.9]} 6. Qe2 {[%clk 0:02:52.4]} 6... Qe7 {[%clk
0:02:52.4]} 7. Bf4 {[%clk 0:02:46.6]} 7... O-O-O {[%clk 0:02:47.4]} 8. Nc3
{[%clk 0:02:42.7]} 8... Qe8 {[%clk 0:02:44.4]} 9. O-O {[%clk 0:02:29.8]} 9... g5
{[%clk 0:02:40.2]} 10. Bg3 {[%clk 0:02:29.7]} 10... g4 {[%clk 0:02:40.3]} 11.
Bxc6 {[%clk 0:02:29.1]} 11... Bxc6 {[%clk 0:02:39.1]} 12. Ne1 {[%clk 0:02:21.7]}
12... f5 {[%clk 0:02:39.1]} 13. Nd3 {[%clk 0:02:21]} 13... h5 {[%clk 0:02:39]}
14. Bh4 {[%clk 0:02:17.1]} 14... Be7 {[%clk 0:02:39.3]} 15. Bxe7 {[%clk
0:02:16.8]} 15... Nxe7 {[%clk 0:02:40.2]} 16. a4 {[%clk 0:01:57.5]} 16... Ng6
{[%clk 0:02:39.7]} 17. Qe3 {[%clk 0:01:53.1]} 17... h4 {[%clk 0:02:36.6]} 18. b4
{[%clk 0:01:46.7]} 18... Qf7 {[%clk 0:02:30.5]} 19. Ne2 {[%clk 0:01:44.3]} 19...
Rdg8 {[%clk 0:02:29.3]} 20. Nef4 {[%clk 0:01:38.2]} 20... Nf8 {[%clk 0:02:28.5]}
21. b5 {[%clk 0:01:36.3]} 21... Be8 {[%clk 0:02:28.6]} 22. Rfb1 {[%clk
0:01:33.8]} 22... g3 {[%clk 0:02:20.7]} 23. fxg3 {[%clk 0:01:30.1]} 23... hxg3
{[%clk 0:02:21.6]} 24. h3 {[%clk 0:01:28.6]} 24... Nh7 {[%clk 0:02:21.8]} 25. a5
{[%clk 0:01:26.2]} 25... Ng5 {[%clk 0:02:21.7]} 26. b6 {[%clk 0:01:26.3]} 26...
a6 {[%clk 0:02:15.4]} 27. bxc7 {[%clk 0:01:24.5]} 27... Bb5 {[%clk 0:02:07.2]}
28. Nc5 {[%clk 0:01:16.6]} 28... Kxc7 {[%clk 0:02:07.5]} 29. Rxb5 {[%clk
0:01:12.3]} 29... axb5 {[%clk 0:02:07.2]} 30. Rb1 {[%clk 0:01:13.2]} 30... Qe8
{[%clk 0:02:06.1]} 31. Qd3 {[%clk 0:01:06.2]} 31... b6 {[%clk 0:00:55.4]} 32.
Na6+ {[%clk 0:00:47.5]} 32... Kd8 {[%clk 0:00:47.7]} 33. Rxb5 {[%clk 0:00:46.2]}
33... Ke7 {[%clk 0:00:44.1]} 34. axb6 {[%clk 0:00:33.3]} 34... Qc6 {[%clk
0:00:42.6]} 35. Qa3+ {[%clk 0:00:14.2]} 35... Kf7 {[%clk 0:00:42.3]} 36. Rc5
{[%clk 0:00:14.1]} 36... Qxb6 {[%clk 0:00:32.7]} 37. Rc7+ {[%clk 0:00:14.1]}
37... Qxc7 {[%clk 0:00:33.1]} 38. Nxc7 {[%clk 0:00:15]} 38... Rb8 {[%clk
0:00:33.5]} 39. Kf1 {[%clk 0:00:13.1]} 39... Rhc8 {[%clk 0:00:23.6]} 40. Qd6
{[%clk 0:00:12.3]} 40... Rd8 {[%clk 0:00:23.7]} 41. Qc6 {[%clk 0:00:12.3]} 41...
Rb1+ {[%clk 0:00:02.5]} 42. Ke2 {[%clk 0:00:12.1]} 42... Ne4 {[%clk 0:00:02]}
43. Qxe6+ {[%clk 0:00:11.4]} 43... Kf8 {[%clk 0:00:01.9]} 44. Qh6+ {[%clk
0:00:11.7]} 44... Kg8 {[%clk 0:00:02]} 45. Qg6+ {[%clk 0:00:11.1]} 45... Kf8
{[%clk 0:00:02.5]} 46. Nce6+ {[%clk 0:00:10.9]} 46... Ke7 {[%clk 0:00:02.3]} 47.
Qg7+ {[%clk 0:00:11.6]} 47... Ke8 {[%clk 0:00:02.8]} 48. Nc7# {[%clk 0:00:12.2]}
1-0

[Event "*** Titled Tuesday Blitz"]
[Site "Chess.com"]
[Date "2021.03.09"]
[Round "11"]
[White "Volodar_Murzin"]
[Black "dropstoneDP"]
[Result "0-1"]
[WhiteElo "2665"]
[BlackElo "2889"]
[TimeControl "180+1"]
[EndTime "12:10:23 PST"]
[Termination "dropstoneDP won on time"]

1. e4 {[%clk 0:03:00.9]} 1... c5 {[%clk 0:02:58.9]} 2. Nf3 {[%clk 0:03:00.5]}
2... e6 {[%clk 0:02:58.7]} 3. g3 {[%clk 0:02:57.2]} 3... Nc6 {[%clk 0:02:54.3]}
4. Bg2 {[%clk 0:02:56.3]} 4... Nf6 {[%clk 0:02:54.1]} 5. Qe2 {[%clk 0:02:55.6]}
5... d6 {[%clk 0:02:53.3]} 6. O-O {[%clk 0:02:54.4]} 6... Be7 {[%clk 0:02:53.4]}
7. c3 {[%clk 0:02:54.2]} 7... O-O {[%clk 0:02:51.4]} 8. Rd1 {[%clk 0:02:51.1]}
8... e5 {[%clk 0:02:50.5]} 9. Na3 {[%clk 0:02:48.5]} 9... Re8 {[%clk 0:02:40.5]}
10. d3 {[%clk 0:02:47]} 10... h6 {[%clk 0:02:36.4]} 11. Nc4 {[%clk 0:02:42.7]}
11... Be6 {[%clk 0:02:32.1]} 12. Ne3 {[%clk 0:02:41]} 12... d5 {[%clk 0:02:32]}
13. Nh4 {[%clk 0:02:39.7]} 13... g6 {[%clk 0:02:20.4]} 14. exd5 {[%clk
0:01:50.8]} 14... Nxd5 {[%clk 0:02:17.7]} 15. Nxd5 {[%clk 0:01:50.1]} 15... Bxd5
{[%clk 0:02:11.3]} 16. Bxd5 {[%clk 0:01:49.4]} 16... Qxd5 {[%clk 0:02:12.2]} 17.
Bxh6 {[%clk 0:01:49.4]} 17... Bxh4 {[%clk 0:02:12.7]} 18. gxh4 {[%clk
0:01:48.2]} 18... f6 {[%clk 0:01:50.8]} 19. Qg4 {[%clk 0:01:39.1]} 19... Kf7
{[%clk 0:01:49.5]} 20. Be3 {[%clk 0:01:32.7]} 20... Rh8 {[%clk 0:01:30.2]} 21.
Qc4 {[%clk 0:01:26.6]} 21... Qxc4 {[%clk 0:01:05.4]} 22. dxc4 {[%clk 0:01:25.4]}
22... b6 {[%clk 0:01:06.3]} 23. Rd7+ {[%clk 0:01:13.7]} 23... Ke6 {[%clk
0:01:01.9]} 24. Rad1 {[%clk 0:00:52.3]} 24... Nd4 {[%clk 0:00:56]} 25. Rg7
{[%clk 0:00:27]} 25... Nf3+ {[%clk 0:00:52]} 26. Kf1 {[%clk 0:00:26.4]} 26...
Kf5 {[%clk 0:00:44.5]} 27. Ke2 {[%clk 0:00:24.6]} 27... Nxh2 {[%clk 0:00:33.4]}
28. f3 {[%clk 0:00:20.4]} 28... Rxh4 {[%clk 0:00:31.5]} 29. Rd6 {[%clk
0:00:12.3]} 29... e4 {[%clk 0:00:11.4]} 30. Rd5+ {[%clk 0:00:12.1]} 30... Ke6
{[%clk 0:00:11.5]} 31. Rxg6 {[%clk 0:00:06.8]} 31... Nxf3 {[%clk 0:00:07.8]} 32.
Bf2 {[%clk 0:00:05.2]} 32... Rh3 {[%clk 0:00:06.2]} 33. Rg4 {[%clk 0:00:02.7]}
33... Ng5 {[%clk 0:00:04.4]} 34. Bg3 {[%clk 0:00:01]} 34... Rah8 {[%clk
0:00:03.6]} 35. Bf4 {[%clk 0:00:01.5]} 35... R8h5 {[%clk 0:00:04]} 36. Bxg5
{[%clk 0:00:01.6]} 36... fxg5 {[%clk 0:00:04.2]} 37. Rxe4+ {[%clk 0:00:02.1]}
37... Kf6 {[%clk 0:00:04]} 38. Rd6+ {[%clk 0:00:02.3]} 38... Kf5 {[%clk
0:00:04.1]} 39. Re8 {[%clk 0:00:02.8]} 39... Rh2+ {[%clk 0:00:04.5]} 40. Kf1
{[%clk 0:00:02.8]} 40... Rxb2 {[%clk 0:00:03.7]} 41. Rd5+ {[%clk 0:00:03.3]}
41... Kg4 {[%clk 0:00:03.2]} 42. Re4+ {[%clk 0:00:03]} 42... Kf3 {[%clk
0:00:03.6]} 0-1